[Event "*** SCC Grand Prix: Titled Tuesday Blitz"]
[Site "Chess.com"]
[Date "2020.06.02"]
[Round "9"]
[White "zaur-mammadov"]
[Black "goofypenguin96"]
[Result "1-0"]
[WhiteElo "2603"]
[BlackElo "2293"]
[TimeControl "180+1"]
[EndTime "11:47:47 PDT"]
[Termination "zaur-mammadov won by checkmate"]

1. e4 {[%clk 0:03:00.9]} 1... e6 {[%clk 0:02:59.2]} 2. d4 {[%clk 0:03:00.6]}
2... d5 {[%clk 0:02:59.2]} 3. e5 {[%clk 0:03:01.2]} 3... c5 {[%clk 0:02:59]} 4.
c3 {[%clk 0:03:01.7]} 4... Nc6 {[%clk 0:02:58.3]} 5. Nf3 {[%clk 0:03:02.2]} 5...
Bd7 {[%clk 0:02:58.5]} 6. Na3 {[%clk 0:03:02.6]} 6... f6 {[%clk 0:02:57.3]} 7.
Nc2 {[%clk 0:02:57.1]} 7... g6 {[%clk 0:02:38.7]} 8. Bd3 {[%clk 0:02:55.6]} 8...
Bg7 {[%clk 0:02:38.4]} 9. O-O {[%clk 0:02:52.5]} 9... fxe5 {[%clk 0:02:33.2]}
10. dxe5 {[%clk 0:02:53.4]} 10... Nxe5 {[%clk 0:02:27.6]} 11. Nxe5 {[%clk
0:02:54.3]} 11... Bxe5 {[%clk 0:02:28]} 12. Re1 {[%clk 0:02:50.8]} 12... Bg7
{[%clk 0:02:23.6]} 13. Qf3 {[%clk 0:02:46.6]} 13... Nf6 {[%clk 0:02:16.9]} 14.
Bf4 {[%clk 0:02:28.7]} 14... O-O {[%clk 0:02:12.1]} 15. Bd6 {[%clk 0:02:28.2]}
15... Rf7 {[%clk 0:02:05.7]} 16. Qe2 {[%clk 0:02:18.1]} 16... Rc8 {[%clk
0:01:55.2]} 17. Rad1 {[%clk 0:02:13.1]} 17... c4 {[%clk 0:01:51.3]} 18. Bxg6
{[%clk 0:02:02.2]} 18... hxg6 {[%clk 0:01:48.8]} 19. Nd4 {[%clk 0:02:01.9]}
19... Ne4 {[%clk 0:01:42.6]} 20. Bg3 {[%clk 0:02:01.7]} 20... Nxg3 {[%clk
0:01:38.5]} 21. hxg3 {[%clk 0:01:58.3]} 21... Bxd4 {[%clk 0:01:37]} 22. Rxd4
{[%clk 0:01:57.3]} 22... Qf6 {[%clk 0:01:21.7]} 23. Qe3 {[%clk 0:01:56.9]} 23...
b6 {[%clk 0:01:12.4]} 24. f4 {[%clk 0:01:39.2]} 24... Rcf8 {[%clk 0:01:06.1]}
25. Qf3 {[%clk 0:01:27.9]} 25... Kg7 {[%clk 0:00:44.3]} 26. Qd1 {[%clk 0:01:21]}
26... Qf5 {[%clk 0:00:28.9]} 27. Re5 {[%clk 0:01:18.8]} 27... Qf6 {[%clk
0:00:29.1]} 28. Qe2 {[%clk 0:01:13.9]} 28... Rh8 {[%clk 0:00:25.1]} 29. Rg5
{[%clk 0:01:11.1]} 29... Rh5 {[%clk 0:00:20.4]} 30. Qxh5 {[%clk 0:01:07.9]}
30... e5 {[%clk 0:00:09.8]} 31. Rxd5 {[%clk 0:01:01.3]} 31... exf4 {[%clk
0:00:08.7]} 32. Rxg6+ {[%clk 0:00:59.3]} 32... Qxg6 {[%clk 0:00:05.3]} 33. Rg5
{[%clk 0:00:59.8]} 33... Rf6 {[%clk 0:00:03.5]} 34. Rxg6+ {[%clk 0:00:55.6]}
34... Rxg6 {[%clk 0:00:04.4]} 35. Qe5+ {[%clk 0:00:56.1]} 35... Rf6 {[%clk
0:00:04.6]} 36. gxf4 {[%clk 0:00:54.2]} 36... Kf7 {[%clk 0:00:04.8]} 37. Kf2
{[%clk 0:00:53]} 37... Bc6 {[%clk 0:00:04.3]} 38. g4 {[%clk 0:00:51.4]} 38...
Re6 {[%clk 0:00:04.1]} 39. Qh5+ {[%clk 0:00:50.4]} 39... Ke7 {[%clk 0:00:03.6]}
40. f5 {[%clk 0:00:49.5]} 40... Rd6 {[%clk 0:00:02.4]} 41. Qh7+ {[%clk
0:00:49.1]} 41... Kf6 {[%clk 0:00:01.4]} 42. Qh6+ {[%clk 0:00:47.7]} 42... Ke5
{[%clk 0:00:01.6]} 43. Qh2+ {[%clk 0:00:42.9]} 43... Kd5 {[%clk 0:00:01.9]} 44.
g5 {[%clk 0:00:41.8]} 44... Kc5 {[%clk 0:00:02.1]} 45. Qe5+ {[%clk 0:00:40.9]}
45... Rd5 {[%clk 0:00:02.3]} 46. Qe3+ {[%clk 0:00:35.1]} 46... Kb5 {[%clk
0:00:02.7]} 47. Qf4 {[%clk 0:00:28.8]} 47... Bd7 {[%clk 0:00:02.9]} 48. f6
{[%clk 0:00:29]} 48... Be8 {[%clk 0:00:01.5]} 49. f7 {[%clk 0:00:27.5]} 49...
Bxf7 {[%clk 0:00:01.9]} 50. Qxf7 {[%clk 0:00:27.9]} 50... Rxg5 {[%clk
0:00:02.5]} 51. Qe8+ {[%clk 0:00:27.8]} 51... Ka5 {[%clk 0:00:01.9]} 52. Qe7
{[%clk 0:00:27]} 52... Rf5+ {[%clk 0:00:02.1]} 53. Ke3 {[%clk 0:00:27]} 53...
Rb5 {[%clk 0:00:03]} 54. Qa3# {[%clk 0:00:26.4]} 1-0

[Event "*** SCC Grand Prix: Titled Tuesday Blitz"]
[Site "Chess.com"]
[Date "2020.06.02"]
[Round "9"]
[White "talman67"]
[Black "ketster"]
[Result "0-1"]
[WhiteElo "2536"]
[BlackElo "2432"]
[TimeControl "180+1"]
[EndTime "11:47:48 PDT"]
[Termination "ketster won by resignation"]

1. e4 {[%clk 0:03:00.9]} 1... e5 {[%clk 0:02:59.8]} 2. Nf3 {[%clk 0:03:01.3]}
2... Nc6 {[%clk 0:02:59.5]} 3. Bb5 {[%clk 0:03:01.9]} 3... a6 {[%clk 0:02:59.5]}
4. Ba4 {[%clk 0:03:02.6]} 4... Nf6 {[%clk 0:02:59.1]} 5. O-O {[%clk 0:03:03.2]}
5... Be7 {[%clk 0:02:59]} 6. Re1 {[%clk 0:03:03.8]} 6... b5 {[%clk 0:02:58.6]}
7. Bb3 {[%clk 0:03:04.5]} 7... d6 {[%clk 0:02:58.8]} 8. c3 {[%clk 0:03:04.9]}
8... O-O {[%clk 0:02:57.9]} 9. h3 {[%clk 0:03:05.5]} 9... Nd7 {[%clk 0:02:56.8]}
10. d4 {[%clk 0:03:04.3]} 10... Bf6 {[%clk 0:02:55.8]} 11. a4 {[%clk 0:03:04.9]}
11... Rb8 {[%clk 0:02:54.8]} 12. Na3 {[%clk 0:03:03.6]} 12... b4 {[%clk
0:02:50.1]} 13. Nc4 {[%clk 0:02:55.2]} 13... bxc3 {[%clk 0:02:45]} 14. bxc3
{[%clk 0:02:56.1]} 14... exd4 {[%clk 0:02:43.6]} 15. cxd4 {[%clk 0:02:57]} 15...
Nxd4 {[%clk 0:02:42.3]} 16. Nxd4 {[%clk 0:02:57.9]} 16... Bxd4 {[%clk
0:02:42.2]} 17. Qxd4 {[%clk 0:02:58.8]} 17... Rxb3 {[%clk 0:02:42.3]} 18. Bb2
{[%clk 0:02:39.4]} 18... Qf6 {[%clk 0:02:24.6]} 19. Qxf6 {[%clk 0:02:25.9]}
19... Nxf6 {[%clk 0:02:21.8]} 20. e5 {[%clk 0:02:23.3]} 20... dxe5 {[%clk
0:02:14.5]} 21. Bxe5 {[%clk 0:02:24.2]} 21... Nd5 {[%clk 0:01:57.3]} 22. Rad1
{[%clk 0:02:20.4]} 22... Be6 {[%clk 0:01:54.9]} 23. f4 {[%clk 0:02:12.9]} 23...
Nc3 {[%clk 0:01:22.8]} 24. Bxc3 {[%clk 0:01:34.5]} 24... Rxc3 {[%clk 0:01:21.4]}
25. Ne5 {[%clk 0:01:30.3]} 25... Bb3 {[%clk 0:01:10.9]} 26. Rc1 {[%clk
0:01:30.3]} 26... Rxc1 {[%clk 0:01:01.3]} 27. Rxc1 {[%clk 0:01:31.2]} 27... Bxa4
{[%clk 0:01:01.3]} 28. Rxc7 {[%clk 0:01:31.7]} 28... f6 {[%clk 0:00:59.7]} 29.
Nc4 {[%clk 0:01:32.1]} 29... Rd8 {[%clk 0:00:55]} 30. Kf2 {[%clk 0:01:23.5]}
30... Bb5 {[%clk 0:00:52.7]} 31. Na5 {[%clk 0:01:16.5]} 31... Rd7 {[%clk
0:00:47.8]} 32. Rc8+ {[%clk 0:01:05.6]} 32... Kf7 {[%clk 0:00:47.5]} 33. Ke3
{[%clk 0:01:06.5]} 33... f5 {[%clk 0:00:40.1]} 34. Rc3 {[%clk 0:01:00]} 34...
Re7+ {[%clk 0:00:38.9]} 35. Kf3 {[%clk 0:00:57.5]} 35... Rd7 {[%clk 0:00:32.8]}
36. Ke3 {[%clk 0:00:55]} 36... Ke6 {[%clk 0:00:31.8]} 37. Nb3 {[%clk 0:00:54.1]}
37... Kd6 {[%clk 0:00:21.4]} 38. Nd4 {[%clk 0:00:45.1]} 38... g6 {[%clk
0:00:20.1]} 39. g4 {[%clk 0:00:45.4]} 39... Re7+ {[%clk 0:00:19.2]} 40. Kf3
{[%clk 0:00:39.6]} 40... fxg4+ {[%clk 0:00:19.3]} 41. hxg4 {[%clk 0:00:39.4]}
41... Kd5 {[%clk 0:00:19.5]} 42. Nc2 {[%clk 0:00:35.2]} 42... a5 {[%clk
0:00:15.8]} 43. f5 {[%clk 0:00:32.1]} 43... gxf5 {[%clk 0:00:14.7]} 44. gxf5
{[%clk 0:00:33]} 44... a4 {[%clk 0:00:14.6]} 45. Na3 {[%clk 0:00:24]} 45... Bd7
{[%clk 0:00:12.6]} 46. Rc7 {[%clk 0:00:20.4]} 46... Kd6 {[%clk 0:00:11.2]} 47.
Ra7 {[%clk 0:00:18.2]} 47... Bc6+ {[%clk 0:00:11]} 0-1

[Event "*** SCC Grand Prix: Titled Tuesday Blitz"]
[Site "Chess.com"]
[Date "2020.06.02"]
[Round "9"]
[White "nikitakhoroshev"]
[Black "Ali_rastbod"]
[Result "0-1"]
[WhiteElo "2465"]
[BlackElo "2650"]
[TimeControl "180+1"]
[EndTime "11:47:49 PDT"]
[Termination "Ali_rastbod won on time"]

1. d4 {[%clk 0:02:59.2]} 1... Nf6 {[%clk 0:02:59.4]} 2. c4 {[%clk 0:02:59]} 2...
e6 {[%clk 0:02:58.5]} 3. Nf3 {[%clk 0:02:56.1]} 3... b6 {[%clk 0:02:46]} 4. a3
{[%clk 0:02:55.8]} 4... Bb7 {[%clk 0:02:42.6]} 5. Nc3 {[%clk 0:02:54.8]} 5... d5
{[%clk 0:02:42.8]} 6. cxd5 {[%clk 0:02:49.5]} 6... Nxd5 {[%clk 0:02:43.7]} 7.
Bd2 {[%clk 0:02:42]} 7... Nf6 {[%clk 0:02:14.3]} 8. Bg5 {[%clk 0:02:34.4]} 8...
Be7 {[%clk 0:02:11.1]} 9. e3 {[%clk 0:02:34.3]} 9... O-O {[%clk 0:02:06]} 10.
Be2 {[%clk 0:02:33.8]} 10... Nbd7 {[%clk 0:02:05]} 11. O-O {[%clk 0:02:33.3]}
11... h6 {[%clk 0:02:04.5]} 12. Bh4 {[%clk 0:02:32.7]} 12... Nd5 {[%clk
0:01:38.9]} 13. Bxe7 {[%clk 0:02:29.5]} 13... Qxe7 {[%clk 0:01:23.6]} 14. Rc1
{[%clk 0:02:02.1]} 14... Nxc3 {[%clk 0:01:15.5]} 15. Rxc3 {[%clk 0:02:03]} 15...
c5 {[%clk 0:01:15.4]} 16. Bb5 {[%clk 0:01:57.6]} 16... Rfd8 {[%clk 0:01:07.7]}
17. Rd3 {[%clk 0:01:39.7]} 17... a6 {[%clk 0:01:02.9]} 18. Bxd7 {[%clk 0:01:26]}
18... Qxd7 {[%clk 0:01:03.8]} 19. Rd2 {[%clk 0:01:25.8]} 19... c4 {[%clk
0:00:56.5]} 20. Ne5 {[%clk 0:01:23.5]} 20... Qd5 {[%clk 0:00:53.6]} 21. f3
{[%clk 0:01:23.6]} 21... b5 {[%clk 0:00:53.2]} 22. e4 {[%clk 0:01:15.5]} 22...
Qd6 {[%clk 0:00:51.7]} 23. Qe1 {[%clk 0:01:11.5]} 23... Qb6 {[%clk 0:00:41.6]}
24. Qe3 {[%clk 0:00:56.2]} 24... Rd6 {[%clk 0:00:37.4]} 25. f4 {[%clk
0:00:33.6]} 25... Rad8 {[%clk 0:00:34]} 26. Nf3 {[%clk 0:00:33.2]} 26... f5
{[%clk 0:00:31.4]} 27. exf5 {[%clk 0:00:23.2]} 27... exf5 {[%clk 0:00:32.3]} 28.
Ne5 {[%clk 0:00:21]} 28... Rxd4 {[%clk 0:00:23.2]} 29. Rdf2 {[%clk 0:00:19.4]}
29... Qc7 {[%clk 0:00:15.6]} 30. Qg3 {[%clk 0:00:18.5]} 30... Re4 {[%clk
0:00:13.7]} 31. Qg6 {[%clk 0:00:15.5]} 31... Rf8 {[%clk 0:00:12.1]} 32. Qe6+
{[%clk 0:00:14.7]} 32... Kh8 {[%clk 0:00:12.1]} 33. h3 {[%clk 0:00:13.9]} 33...
Rf6 {[%clk 0:00:08.5]} 34. Qe8+ {[%clk 0:00:13.4]} 34... Kh7 {[%clk 0:00:08.7]}
35. Rd1 {[%clk 0:00:11.8]} 35... Qc5 {[%clk 0:00:04.5]} 36. Kf1 {[%clk
0:00:06.6]} 36... c3 {[%clk 0:00:04.1]} 37. b4 {[%clk 0:00:05.5]} 37... Qe3
{[%clk 0:00:03.8]} 38. Qd7 {[%clk 0:00:02.1]} 38... Ba8 {[%clk 0:00:02.5]} 39.
Qd4 {[%clk 0:00:01.3]} 39... c2 {[%clk 0:00:02.4]} 40. Qd3 {[%clk 0:00:02.2]}
40... cxd1=Q+ {[%clk 0:00:02.2]} 41. Qxd1 {[%clk 0:00:02.2]} 41... Rxf4 {[%clk
0:00:03.1]} 0-1

[Event "*** SCC Grand Prix: Titled Tuesday Blitz"]
[Site "Chess.com"]
[Date "2020.06.02"]
[Round "9"]
[White "Forantes"]
[Black "novocane"]
[Result "0-1"]
[WhiteElo "2286"]
[BlackElo "2175"]
[TimeControl "180+1"]
[EndTime "11:47:49 PDT"]
[Termination "novocane won by resignation"]

1. Nf3 {[%clk 0:03:00.6]} 1... c5 {[%clk 0:02:57.7]} 2. g3 {[%clk 0:03:00.5]}
2... b6 {[%clk 0:02:58.1]} 3. Bg2 {[%clk 0:03:00.5]} 3... Bb7 {[%clk 0:02:59]}
4. O-O {[%clk 0:02:57.3]} 4... e6 {[%clk 0:02:59.2]} 5. d4 {[%clk 0:02:56.5]}
5... cxd4 {[%clk 0:02:57.5]} 6. Qxd4 {[%clk 0:02:55.6]} 6... Nf6 {[%clk
0:02:55.5]} 7. c4 {[%clk 0:02:54.9]} 7... a6 {[%clk 0:02:54.4]} 8. Nc3 {[%clk
0:02:54.5]} 8... d6 {[%clk 0:02:53.6]} 9. Bg5 {[%clk 0:02:53.9]} 9... Nbd7
{[%clk 0:02:53]} 10. Rad1 {[%clk 0:02:53.4]} 10... Be7 {[%clk 0:02:52.6]} 11. b3
{[%clk 0:02:51.3]} 11... O-O {[%clk 0:02:52.1]} 12. Qh4 {[%clk 0:02:25.5]} 12...
Re8 {[%clk 0:02:42.5]} 13. Rfe1 {[%clk 0:01:52.7]} 13... h6 {[%clk 0:02:38]} 14.
Bxh6 {[%clk 0:01:50.4]} 14... gxh6 {[%clk 0:02:34.5]} 15. Qxh6 {[%clk
0:01:51.3]} 15... Qc7 {[%clk 0:02:15.5]} 16. Rd4 {[%clk 0:01:49.5]} 16... Bf8
{[%clk 0:01:48.7]} 17. Qg5+ {[%clk 0:01:48.8]} 17... Bg7 {[%clk 0:01:47.5]} 18.
Red1 {[%clk 0:01:09.3]} 18... d5 {[%clk 0:01:17.5]} 19. h4 {[%clk 0:00:46.6]}
19... Nh7 {[%clk 0:00:51.6]} 20. Qg4 {[%clk 0:00:45.2]} 20... Ndf6 {[%clk
0:00:49.7]} 21. Qh3 {[%clk 0:00:45.4]} 21... b5 {[%clk 0:00:39.6]} 22. Ng5
{[%clk 0:00:33.1]} 22... bxc4 {[%clk 0:00:27.8]} 23. bxc4 {[%clk 0:00:28.1]}
23... dxc4 {[%clk 0:00:16.8]} 24. Nxh7 {[%clk 0:00:25.6]} 24... Kxh7 {[%clk
0:00:17.1]} 25. g4 {[%clk 0:00:11.6]} 25... Bxg2 {[%clk 0:00:16.7]} 26. Qxg2
{[%clk 0:00:11.6]} 26... Rad8 {[%clk 0:00:17]} 27. g5 {[%clk 0:00:10.7]} 27...
Rxd4 {[%clk 0:00:14.6]} 28. Rxd4 {[%clk 0:00:09.9]} 28... Nh5 {[%clk 0:00:13.6]}
29. Qe4+ {[%clk 0:00:10]} 29... Kg8 {[%clk 0:00:12.4]} 30. Rxc4 {[%clk
0:00:10.5]} 30... Qe5 {[%clk 0:00:11.5]} 31. Qc6 {[%clk 0:00:02.9]} 31... Rd8
{[%clk 0:00:11.8]} 32. Ne4 {[%clk 0:00:03.2]} 32... Nf4 {[%clk 0:00:07.4]} 33.
Rc1 {[%clk 0:00:01.5]} 33... Nxe2+ {[%clk 0:00:06.9]} 34. Kg2 {[%clk 0:00:01.9]}
34... Nxc1 {[%clk 0:00:07.2]} 35. h5 {[%clk 0:00:01.4]} 35... Qd5 {[%clk
0:00:05.6]} 36. Qxd5 {[%clk 0:00:01.3]} 36... exd5 {[%clk 0:00:05.3]} 37. Nd2
{[%clk 0:00:01.5]} 37... Rc8 {[%clk 0:00:05]} 38. f4 {[%clk 0:00:01.9]} 38...
Rc2 {[%clk 0:00:05.9]} 39. Kf3 {[%clk 0:00:02.3]} 39... Rxd2 {[%clk 0:00:06.8]}
0-1

[Event "*** SCC Grand Prix: Titled Tuesday Blitz"]
[Site "Chess.com"]
[Date "2020.06.02"]
[Round "9"]
[White "Illingworth"]
[Black "Matibar"]
[Result "1-0"]
[WhiteElo "2898"]
[BlackElo "2702"]
[TimeControl "180+1"]
[EndTime "11:47:51 PDT"]
[Termination "Illingworth won on time"]

1. d4 {[%clk 0:03:00.9]} 1... f5 {[%clk 0:02:59.6]} 2. Bf4 {[%clk 0:02:59.4]}
2... Nf6 {[%clk 0:02:55.5]} 3. e3 {[%clk 0:02:59.8]} 3... b6 {[%clk 0:02:53.9]}
4. Be2 {[%clk 0:02:59.5]} 4... Bb7 {[%clk 0:02:54]} 5. Bf3 {[%clk 0:02:59.9]}
5... Nc6 {[%clk 0:02:46.3]} 6. c4 {[%clk 0:02:59.9]} 6... e6 {[%clk 0:02:45.5]}
7. Nc3 {[%clk 0:03:00.3]} 7... Bb4 {[%clk 0:02:43.4]} 8. Ne2 {[%clk 0:03:00.7]}
8... Na5 {[%clk 0:02:34.5]} 9. Bxb7 {[%clk 0:02:56.9]} 9... Nxb7 {[%clk
0:02:35.1]} 10. a3 {[%clk 0:02:52.5]} 10... Bd6 {[%clk 0:02:34.4]} 11. O-O
{[%clk 0:02:49.5]} 11... O-O {[%clk 0:02:34.1]} 12. b4 {[%clk 0:02:49.6]} 12...
Bxf4 {[%clk 0:02:31.7]} 13. Nxf4 {[%clk 0:02:50.5]} 13... Nd6 {[%clk 0:02:31.3]}
14. c5 {[%clk 0:02:50.3]} 14... Nde4 {[%clk 0:02:31.3]} 15. Nxe4 {[%clk
0:02:49.2]} 15... Nxe4 {[%clk 0:02:31.6]} 16. f3 {[%clk 0:02:48]} 16... Nf6
{[%clk 0:02:30.3]} 17. Qe2 {[%clk 0:02:42.4]} 17... Qe7 {[%clk 0:02:27.4]} 18.
Rfc1 {[%clk 0:02:41.7]} 18... e5 {[%clk 0:02:11.6]} 19. Qc4+ {[%clk 0:02:36.2]}
19... Kh8 {[%clk 0:02:02.7]} 20. Nd5 {[%clk 0:02:33.7]} 20... Nxd5 {[%clk
0:01:54.4]} 21. Qxd5 {[%clk 0:02:34.6]} 21... exd4 {[%clk 0:01:46.8]} 22. Qxd4
{[%clk 0:02:34.7]} 22... Rac8 {[%clk 0:01:25.1]} 23. Rc3 {[%clk 0:02:30.6]}
23... b5 {[%clk 0:01:03.3]} 24. c6 {[%clk 0:02:16.7]} 24... d6 {[%clk
0:00:57.2]} 25. Qxa7 {[%clk 0:02:12.9]} 25... f4 {[%clk 0:00:57.4]} 26. e4
{[%clk 0:02:10]} 26... Rf6 {[%clk 0:00:55]} 27. Qb7 {[%clk 0:02:01.7]} 27...
Rcf8 {[%clk 0:00:53]} 28. Qxb5 {[%clk 0:02:01.7]} 28... Rh6 {[%clk 0:00:52.6]}
29. Qf1 {[%clk 0:01:46.3]} 29... Qh4 {[%clk 0:00:52.2]} 30. h3 {[%clk
0:01:45.5]} 30... Rg6 {[%clk 0:00:52.8]} 31. a4 {[%clk 0:01:07.1]} 31... Qxh3
{[%clk 0:00:52.1]} 32. a5 {[%clk 0:01:05.6]} 32... Qh5 {[%clk 0:00:25.5]} 33. a6
{[%clk 0:01:03.8]} 33... Rh6 {[%clk 0:00:24.1]} 34. a7 {[%clk 0:00:51.4]} 34...
Ra8 {[%clk 0:00:24.3]} 35. Kf2 {[%clk 0:00:50.1]} 35... Qe5 {[%clk 0:00:20.5]}
36. Qc4 {[%clk 0:00:34.3]} 36... Rh2 {[%clk 0:00:20.5]} 37. Ra5 {[%clk
0:00:29.9]} 37... Qf6 {[%clk 0:00:18.2]} 38. Rb5 {[%clk 0:00:12.5]} 38... Qh4+
{[%clk 0:00:16.9]} 39. Ke2 {[%clk 0:00:13]} 39... Rxg2+ {[%clk 0:00:17.1]} 40.
Kd3 {[%clk 0:00:13.5]} 40... Qd8 {[%clk 0:00:14]} 41. Rb7 {[%clk 0:00:13.2]}
41... h6 {[%clk 0:00:13.9]} 42. Qe6 {[%clk 0:00:11.5]} 42... Rf2 {[%clk
0:00:08.2]} 43. Kc4 {[%clk 0:00:11.3]} 43... Kh7 {[%clk 0:00:06.1]} 44. Qf5+
{[%clk 0:00:11]} 44... Kh8 {[%clk 0:00:06.5]} 45. b5 {[%clk 0:00:11.2]} 45...
Qg8+ {[%clk 0:00:06.6]} 46. Qd5 {[%clk 0:00:11.4]} 46... Qc8 {[%clk 0:00:05.5]}
47. b6 {[%clk 0:00:11.5]} 47... cxb6 {[%clk 0:00:05.8]} 48. c7 {[%clk
0:00:12.1]} 48... Ra2 {[%clk 0:00:05.3]} 49. Rb8 {[%clk 0:00:11.7]} 1-0

[Event "*** SCC Grand Prix: Titled Tuesday Blitz"]
[Site "Chess.com"]
[Date "2020.06.02"]
[Round "9"]
[White "deribas12345"]
[Black "MasterKroket"]
[Result "1/2-1/2"]
[WhiteElo "2544"]
[BlackElo "2428"]
[TimeControl "180+1"]
[EndTime "11:47:51 PDT"]
[Termination "Game drawn by agreement"]

1. d4 {[%clk 0:02:48.4]} 1... Nf6 {[%clk 0:02:58.3]} 2. c4 {[%clk 0:02:48.4]}
2... e6 {[%clk 0:02:55.9]} 3. Nc3 {[%clk 0:02:48.5]} 3... Bb4 {[%clk 0:02:56.1]}
4. f3 {[%clk 0:02:48.4]} 4... c5 {[%clk 0:02:53.7]} 5. a3 {[%clk 0:02:48.4]}
5... cxd4 {[%clk 0:02:52.9]} 6. axb4 {[%clk 0:02:45.7]} 6... dxc3 {[%clk
0:02:52.9]} 7. bxc3 {[%clk 0:02:46.6]} 7... O-O {[%clk 0:02:51.4]} 8. e3 {[%clk
0:02:44.1]} 8... Qc7 {[%clk 0:02:50.8]} 9. c5 {[%clk 0:02:43.7]} 9... b6 {[%clk
0:02:49.9]} 10. cxb6 {[%clk 0:02:40.5]} 10... Qxb6 {[%clk 0:02:45.4]} 11. Qd4
{[%clk 0:02:40.3]} 11... Qc7 {[%clk 0:02:41.6]} 12. b5 {[%clk 0:02:36.1]} 12...
a6 {[%clk 0:02:35.8]} 13. Nh3 {[%clk 0:02:33.3]} 13... Bb7 {[%clk 0:02:32.7]}
14. Bd3 {[%clk 0:02:14.3]} 14... axb5 {[%clk 0:02:29.6]} 15. Rxa8 {[%clk
0:02:13.3]} 15... Bxa8 {[%clk 0:02:30.5]} 16. Bxb5 {[%clk 0:02:13]} 16... Nd5
{[%clk 0:02:25.2]} 17. c4 {[%clk 0:02:06.7]} 17... e5 {[%clk 0:02:15.4]} 18. Qh4
{[%clk 0:01:58.1]} 18... Nc3 {[%clk 0:02:13.2]} 19. O-O {[%clk 0:01:45.9]} 19...
h6 {[%clk 0:02:04.5]} 20. Ba3 {[%clk 0:01:38.9]} 20... Re8 {[%clk 0:01:56.4]}
21. Qf2 {[%clk 0:01:33.6]} 21... Nxb5 {[%clk 0:01:46.3]} 22. cxb5 {[%clk
0:01:34.5]} 22... d5 {[%clk 0:01:39.9]} 23. f4 {[%clk 0:01:24.5]} 23... Nd7
{[%clk 0:01:27.7]} 24. fxe5 {[%clk 0:01:20.6]} 24... Nxe5 {[%clk 0:01:28.6]} 25.
Nf4 {[%clk 0:01:20.8]} 25... Ng4 {[%clk 0:01:18.8]} 26. Qb2 {[%clk 0:01:19.9]}
26... Nxe3 {[%clk 0:01:11.7]} 27. Nh5 {[%clk 0:01:18]} 27... Qe5 {[%clk
0:01:01.2]} 28. Qxe5 {[%clk 0:01:11.6]} 28... Rxe5 {[%clk 0:01:02.1]} 29. Bc5
{[%clk 0:01:05]} 29... d4 {[%clk 0:00:55.2]} 30. Bxd4 {[%clk 0:01:02.6]} 30...
Rxh5 {[%clk 0:00:51.5]} 31. Bxe3 {[%clk 0:01:02.9]} 31... Rxb5 {[%clk 0:00:51]}
32. Ra1 {[%clk 0:01:01.7]} 32... Bd5 {[%clk 0:00:49.9]} 33. Bd4 {[%clk
0:00:59.1]} 33... Rb4 {[%clk 0:00:48.8]} 34. Rd1 {[%clk 0:00:57.7]} 34... Rc4
{[%clk 0:00:48.7]} 35. Rd2 {[%clk 0:00:55.4]} 35... Be4 {[%clk 0:00:45.2]} 36.
Kf2 {[%clk 0:00:55.3]} 36... f6 {[%clk 0:00:44.1]} 37. g3 {[%clk 0:00:55.6]}
37... Kf7 {[%clk 0:00:43.8]} 38. h4 {[%clk 0:00:55.4]} 38... h5 {[%clk
0:00:43.5]} 39. Be3 {[%clk 0:00:55.7]} 39... Ke6 {[%clk 0:00:42.1]} 40. Ra2
{[%clk 0:00:54]} 40... Kf5 {[%clk 0:00:39.2]} 41. Ra7 {[%clk 0:00:47.5]} 41...
g6 {[%clk 0:00:37.4]} 42. Ra2 {[%clk 0:00:45.8]} 42... Kg4 {[%clk 0:00:37.3]}
43. Bf4 {[%clk 0:00:46.1]} 43... Bc2 {[%clk 0:00:32.6]} 44. Ra3 {[%clk
0:00:44.1]} 44... g5 {[%clk 0:00:30.8]} 45. hxg5 {[%clk 0:00:43.3]} 45... fxg5
{[%clk 0:00:31.7]} 46. Bd6 {[%clk 0:00:42.5]} 46... Be4 {[%clk 0:00:30.8]} 47.
Rb3 {[%clk 0:00:38.6]} 47... Rc2+ {[%clk 0:00:27.4]} 48. Ke3 {[%clk 0:00:37.9]}
48... Bf5 {[%clk 0:00:26.7]} 49. Rb4+ {[%clk 0:00:37.9]} 49... Kh3 {[%clk
0:00:26.9]} 50. Rb5 {[%clk 0:00:36.2]} 50... Kg4 {[%clk 0:00:18]} 51. Rb4+
{[%clk 0:00:35.2]} 51... Kh3 {[%clk 0:00:18.5]} 52. Rb5 {[%clk 0:00:35.4]} 52...
Rc6 {[%clk 0:00:17]} 53. Rxf5 {[%clk 0:00:32.6]} 53... Rxd6 {[%clk 0:00:16.9]}
54. Rxg5 {[%clk 0:00:33.1]} 54... h4 {[%clk 0:00:15.5]} 55. gxh4 {[%clk
0:00:15]} 55... Kxh4 {[%clk 0:00:16.4]} 56. Rg8 {[%clk 0:00:13.4]} 56... Rf6
{[%clk 0:00:16.4]} 1/2-1/2